fUST/lending_fUST_20250102
["ID","MTS","AMOUNT","RATE_DAILY","PERIOD"]
[347422964,1735781450172,-198.600735,0.00020821,2]
[347422965,1735781450181,-198.600735,0.00020821,2]
[347422966,1735781450190,-500.0,0.00020821,3]
[347422967,1735781450199,-500.0,0.00020821,2]
[347422968,1735781450208,-500.0,0.00020821,3]
[347422969,1735781450218,-635.64,0.00020821,3]
[347422970,1735781450228,-168.998437,0.00020821,2]
[347422971,1735781450237,-168.998437,0.00020821,2]
[347422972,1735781450246,-151.0,0.00020821,2]
[347422973,1735781450256,-500.0,0.00020821,3]
[347422974,1735781450266,-151.0,0.00020821,2]
[347422975,1735781450276,-3171.44,0.00020821,3]
[347422976,1735781450285,-608.36,0.00020821,3]
[347422977,1735781450295,-500.0,0.00020821,3]
[347422978,1735781450304,-567.2,0.00020821,3]
[347422979,1735781450313,-151.0,0.00020821,2]
[347422980,1735781450323,-500.0,0.00020821,3]
[347422981,1735781450332,-151.0,0.00020821,2]
[347422982,1735781450341,-151.0,0.00020821,2]
[347422983,1735781450351,-552.0,0.00020821,3]
[347422984,1735781450361,-500.0,0.00020821,3]
[347422985,1735781450370,-682.65,0.00020821,3]
[347422986,1735781450380,-500.0,0.00020821,3]
[347422987,1735781450389,-688.94,0.00020821,3]
[347422988,1735781450399,-500.0,0.00020821,3]
[347422989,1735781450408,-500.0,0.00020821,3]
[347422990,1735781450417,-325.12337788,0.00020821,3]
[347422991,1735781450427,-614.51,0.00020821,3]
[347422992,1735781450436,-500.0,0.00020821,3]
[347422993,1735781450446,-500.0,0.00020821,3]
[347422994,1735781450455,-500.0,0.00020821,3]
[347422995,1735781450464,-563.24,0.00020821,3]
[347422996,1735781450474,-1968.22,0.00020821,3]
[347422997,1735781450483,-988.337518,0.00020821,2]
[347422998,1735781450492,-988.337518,0.00020821,2]
[347422999,1735781450501,-500.0,0.00020821,3]
[347423000,1735781450510,-500.0,0.00020821,3]
[347423001,1735781450521,-500.0,0.00020821,3]
[347423002,1735781450530,-500.0,0.00020821,3]
[347423003,1735781450539,-772.57,0.00020821,3]
[347423004,1735781450549,-500.0,0.00020821,3]
[347423005,1735781450558,-500.0,0.00020821,3]
[347423006,1735781450568,-1364.88,0.00020821,3]
[347423007,1735781450577,-17282.47,0.00020821,3]
[347423008,1735781450587,-279.13278393,0.00020821,3]
[347423009,1735781450597,-500.0,0.00020821,3]
[347423010,1735781450608,-920.77,0.00020821,3]
[347423011,1735781450618,-650.43,0.00020821,3]
[347423012,1735781450628,-151.0,0.00020821,2]
[347423013,1735781450637,-668.77,0.00020821,3]
[347423014,1735781450647,-3722.61,0.00020821,3]
[347423015,1735781450657,-1336.34,0.00020821,3]
[347423016,1735781450666,-1957.8,0.00020821,3]
[347423017,1735781450676,-500.0,0.00020821,3]
[347423018,1735781450685,-2438.59,0.00020821,3]
[347423019,1735781450694,-907.56,0.00020821,2]
[347423020,1735781450704,-500.0,0.00020821,3]
[347423021,1735781450713,-804.962658,0.00020821,2]
[347423022,1735781450723,-804.962658,0.00020821,2]
[347423023,1735781450732,-871.54,0.00020821,3]
[347423024,1735781450742,-500.0,0.00020821,3]
[347423025,1735781450751,-500.0,0.00020821,3]
[347423026,1735781450761,-500.0,0.00020821,3]
[347423027,1735781450772,-583.03,0.00020821,3]
[347423028,1735781450781,-500.0,0.00020821,3]
[347423029,1735781450790,-1532.37,0.00020821,3]
[347423030,1735781450800,-500.0,0.00020821,3]
[347423031,1735781450810,-500.0,0.00020821,3]
[347423032,1735781450819,-955.72,0.00020821,3]
[347423033,1735781450827,-1437.5,0.00020821,3]
[347423034,1735781450837,-500.0,0.00020821,3]
[347423035,1735781450846,-838.21,0.00020821,3]
[347423036,1735781450855,-500.0,0.00020821,3]
[347423037,1735781450864,-500.0,0.00020821,3]
[347423038,1735781450873,-500.0,0.00020821,3]
[347423039,1735781450883,-841.01,0.00020821,3]
[347423040,1735781450892,-962.78,0.00020821,3]
[347423041,1735781450901,-500.0,0.00020821,3]
[347423042,1735781450910,-151.0,0.00020821,2]
[347423043,1735781450919,-500.0,0.00020821,3]
[347423044,1735781450929,-1333.99,0.00020821,3]
[347423045,1735781450938,-500.0,0.00020821,3]
[347423046,1735781450947,-500.0,0.00020821,3]
[347423047,1735781450958,-9270.81714146,0.00020847,2]
[347423048,1735781450968,-10317.16417232,0.00020884,2]
[347423049,1735781450978,-151.0,0.00020894,5]
[347423050,1735781450988,-420.0,0.00020898,2]
[347423051,1735781450999,-260.885424,0.00020904,2]
[347423052,1735781451008,-362.02254016,0.00020953,2]
[347423053,1735781451020,-2000.0,0.00021,2]
[347423054,1735781451029,-2000.0,0.00021,2]
[347423055,1735781451039,-285.33,0.0002106,2]
[347423056,1735781451048,-5487.70513545,0.00021061,14]
[347423057,1735781451058,-151.0,0.00021061,2]
[347423058,1735781451067,-151.0,0.00021061,2]
[347423059,1735781451077,-224.771737,0.00021061,2]
[347423060,1735781451086,-224.771737,0.00021061,2]
[347423061,1735781451095,-151.0,0.00021095,2]
[347423062,1735781451105,-560.013014,0.00021095,2]
[347423063,1735781451114,-560.013014,0.00021095,2]
[347423064,1735781451124,-500.0,0.00021095,3]
[347423065,1735781451133,-151.187512,0.00021095,2]
[347423066,1735781451143,-151.187512,0.00021095,2]
[347423067,1735781451153,-151.0,0.00021095,2]
[347423068,1735781451162,-198.600735,0.00021095,2]
[347423069,1735781451172,-198.600735,0.00021095,2]
[347423070,1735781451181,-500.0,0.00021095,3]
[347423071,1735781451191,-500.0,0.00021095,3]
[347423072,1735781451200,-635.64,0.00021095,3]
[347423073,1735781451210,-151.0,0.00021095,2]
[347423074,1735781451340,-151.0,0.00021095,2]
[347423075,1735781451350,-500.0,0.00021095,3]
[347423076,1735781451360,-3171.44,0.00021095,3]
[347423077,1735781451369,-608.36,0.00021095,3]
[347423078,1735781451379,-500.0,0.00021095,3]
[347423079,1735781451388,-567.2,0.00021095,3]
[347423080,1735781451398,-500.0,0.00021095,3]
[347423081,1735781451407,-151.0,0.00021095,2]
[347423082,1735781451416,-552.0,0.00021095,3]
[347423083,1735781451425,-500.0,0.00021095,3]
[347423084,1735781451435,-682.65,0.00021095,3]
[347423085,1735781451444,-500.0,0.00021095,3]
[347423086,1735781451453,-688.94,0.00021095,3]
[347423087,1735781451463,-500.0,0.00021095,3]
[347423088,1735781451472,-500.0,0.00021095,3]
[347423089,1735781451484,-614.51,0.00021095,3]
[347423090,1735781451493,-500.0,0.00021095,3]
[347423091,1735781451503,-500.0,0.00021095,3]
[347423092,1735781451512,-500.0,0.00021095,3]
[347423093,1735781451523,-563.24,0.00021095,3]
[347423094,1735781451532,-1968.22,0.00021095,3]
[347423095,1735781451541,-988.337518,0.00021095,2]
[347423096,1735781451551,-988.337518,0.00021095,2]
[347423097,1735781451560,-500.0,0.00021095,3]
[347423098,1735781451570,-500.0,0.00021095,3]
[347423099,1735781451579,-500.0,0.00021095,3]
[347423100,1735781451588,-500.0,0.00021095,3]
[347423101,1735781451597,-772.57,0.00021095,3]
[347423102,1735781451606,-500.0,0.00021095,3]
[347423103,1735781451616,-500.0,0.00021095,3]
[347423104,1735781451624,-1364.88,0.00021095,3]
[347423105,1735781451634,-17282.47,0.00021095,3]
[347423106,1735781451642,-500.0,0.00021095,3]
[347423107,1735781451652,-920.77,0.00021095,3]
[347423108,1735781451661,-650.43,0.00021095,3]
[347423109,1735781451671,-151.0,0.00021095,2]
[347423110,1735781451681,-668.77,0.00021095,3]
[347423111,1735781451690,-3722.61,0.00021095,3]
[347423112,1735781451699,-1336.34,0.00021095,3]
[347423113,1735781451708,-1957.8,0.00021095,3]
[347423114,1735781451717,-500.0,0.00021095,3]
[347423115,1735781451727,-2438.59,0.00021095,3]
[347423116,1735781451736,-907.56,0.00021095,2]
[347423117,1735781451745,-500.0,0.00021095,3]
[347423118,1735781451755,-804.962658,0.00021095,2]
[347423119,1735781451764,-804.962658,0.00021095,2]
[347423120,1735781451774,-871.54,0.00021095,3]
[347423121,1735781451784,-500.0,0.00021095,3]
[347423122,1735781451793,-500.0,0.00021095,3]
[347423123,1735781451802,-500.0,0.00021095,3]
[347423124,1735781451811,-583.03,0.00021095,3]
[347423125,1735781451820,-500.0,0.00021095,3]
[347423126,1735781451830,-1532.37,0.00021095,3]
[347423127,1735781451839,-500.0,0.00021095,3]
[347423128,1735781451849,-500.0,0.00021095,3]
[347423129,1735781451858,-955.72,0.00021095,3]
[347423130,1735781451867,-1437.5,0.00021095,3]
[347423131,1735781451877,-500.0,0.00021095,3]
[347423132,1735781451886,-838.21,0.00021095,3]
[347423133,1735781451896,-500.0,0.00021095,3]
[347423134,1735781451905,-500.0,0.00021095,3]
[347423135,1735781451914,-500.0,0.00021095,3]
[347423136,1735781451923,-841.01,0.00021095,3]
[347423137,1735781451932,-962.78,0.00021095,3]
[347423138,1735781451942,-500.0,0.00021095,3]
[347423139,1735781451951,-151.0,0.00021095,2]
[347423140,1735781451962,-1333.99,0.00021095,3]
[347423141,1735781451971,-313.75692767,0.00021095,3]
[347423142,1735781451980,-500.0,0.00021095,3]
[347423143,1735781451990,-500.0,0.00021095,3]
[347423144,1735781451999,-260.885424,0.00021096,2]
[347423145,1735781452009,-285.3379963,0.00021113,2]
[347423146,1735781452019,-151.0,0.00021131,6]
[347423147,1735781452028,-362.02254016,0.00021163,2]
[347423148,1735781452038,-157.0,0.00021171,2]
[347423149,1735781452048,-157.0,0.00021171,2]
[347423150,1735781452058,-157.0,0.00021171,2]
[347423151,1735781452067,-157.0,0.00021171,2]
[347423152,1735781452077,-157.0,0.00021171,2]
[347423153,1735781452087,-157.0,0.00021171,2]
[347423154,1735781452096,-157.0,0.00021171,2]
[347423155,1735781452106,-157.0,0.00021171,2]
[347423156,1735781452115,-157.0,0.00021171,2]
[347423157,1735781452124,-157.0,0.00021171,2]
[347423158,1735781452134,-157.0,0.00021171,2]
[347423159,1735781452143,-157.0,0.00021171,2]
[347423160,1735781452152,-157.0,0.00021171,2]
[347423161,1735781452162,-157.0,0.00021171,2]
[347423162,1735781452170,-157.0,0.00021171,2]
[347423163,1735781452180,-157.0,0.00021171,2]
[347423164,1735781452189,-157.0,0.00021171,2]
[347423165,1735781452198,-157.0,0.00021171,2]
[347423166,1735781452207,-157.0,0.00021171,2]
[347423167,1735781452216,-157.0,0.00021171,2]
[347423168,1735781452225,-158.0,0.00021171,2]
[347423169,1735781452236,-168.998437,0.00021171,2]
[347423170,1735781452247,-168.998437,0.00021171,2]
[347423171,1735781452256,-153.86,0.00021177,2]
[347423172,1735781452265,-2000.0,0.000212,3]
[347423173,1735781452276,-2000.0,0.000212,4]
[347423174,1735781452286,-2000.0,0.000212,5]
[347423175,1735781452295,-2000.0,0.000212,6]
[347423176,1735781452306,-2000.0,0.000212,7]
[347423177,1735781452315,-2000.0,0.000212,8]
[347423178,1735781452324,-260.885424,0.00021288,2]
[347423179,1735781452334,-2000.0,0.000213,2]
[347423180,1735781452343,-239.63770596,0.00021322,2]
[347423181,1735781452353,-161.10895374,0.00021326,2]
[347423182,1735781452362,-151.0,0.00021369,2]
[347423183,1735781452371,-500.0,0.00021369,3]
[347423184,1735781452380,-151.187512,0.00021369,2]
[347423185,1735781452390,-151.187512,0.00021369,2]
[347423186,1735781452399,-151.0,0.00021369,2]
[347423187,1735781452408,-500.0,0.00021369,3]
[347423188,1735781452418,-500.0,0.00021369,3]
[347423189,1735781452427,-635.64,0.00021369,3]
[347423190,1735781452436,-151.0,0.00021369,2]
[347423191,1735781452446,-500.0,0.00021369,3]
[347423192,1735781452455,-151.0,0.00021369,2]
[347423193,1735781452464,-3171.44,0.00021369,3]
[347423194,1735781452475,-608.36,0.00021369,3]
[347423195,1735781452485,-500.0,0.00021369,3]
[347423196,1735781452495,-567.2,0.00021369,3]
[347423197,1735781452507,-500.0,0.00021369,3]
[347423198,1735781452516,-151.0,0.00021369,2]
[347423199,1735781452530,-552.0,0.00021369,3]
[347423200,1735781452540,-500.0,0.00021369,3]
[347423201,1735781452549,-682.65,0.00021369,3]
[347423202,1735781452559,-151.0,0.00021369,2]
[347423203,1735781452568,-151.0,0.00021369,2]
[347423204,1735781452578,-224.771737,0.00021369,2]
[347423205,1735781452587,-500.0,0.00021369,3]
[347423206,1735781452597,-224.771737,0.00021369,2]
[347423207,1735781452606,-688.94,0.00021369,3]
[347423208,1735781452616,-500.0,0.00021369,3]
[347423209,1735781452625,-500.0,0.00021369,3]
[347423210,1735781452634,-614.51,0.00021369,3]
[347423211,1735781452643,-500.0,0.00021369,3]
[347423212,1735781452653,-500.0,0.00021369,3]
[347423213,1735781452662,-318.35205735,0.00021369,3]
[347423214,1735781452671,-151.0,0.00021369,6]
[347423215,1735781452680,-563.24,0.00021369,3]
[347423216,1735781452690,-1968.22,0.00021369,3]
[347423217,1735781452700,-500.0,0.00021369,3]
[347423218,1735781452709,-500.0,0.00021369,3]
[347423219,1735781452719,-500.0,0.00021369,3]
[347423220,1735781452729,-500.0,0.00021369,3]
[347423221,1735781452738,-772.57,0.00021369,3]
[347423222,1735781452748,-500.0,0.00021369,3]
[347423223,1735781452757,-500.0,0.00021369,3]
[347423224,1735781452767,-1364.88,0.00021369,3]
[347423225,1735781452782,-17282.47,0.00021369,3]
[347423226,1735781452792,-500.0,0.00021369,3]
[347423227,1735781452803,-500.0,0.00021369,3]
[347423228,1735781452813,-920.77,0.00021369,3]
[347423229,1735781452824,-650.43,0.00021369,3]
[347423230,1735781452834,-151.0,0.00021369,2]
[347423231,1735781452844,-668.77,0.00021369,3]
[347423232,1735781452854,-3722.61,0.00021369,3]
[347423233,1735781452864,-1336.34,0.00021369,3]
[347423234,1735781452874,-1957.8,0.00021369,3]
[347423235,1735781452884,-500.0,0.00021369,3]
[347423236,1735781452894,-2438.59,0.00021369,3]
[347423237,1735781452904,-907.56,0.00021369,2]
[347423238,1735781452913,-499.92122819,0.00021369,3]
[347423239,1735781452923,-804.962658,0.00021369,2]
[347423240,1735781452933,-804.962658,0.00021369,2]
[347423241,1735781452942,-871.54,0.00021369,3]
[347423242,1735781452952,-150.24,0.00021369,2]
[347423243,1735781452961,-500.0,0.00021369,3]
[347423244,1735781452971,-500.0,0.00021369,3]
[347423245,1735781452981,-583.03,0.00021369,3]
[347423246,1735781452991,-1532.37,0.00021369,3]
[347423247,1735781453000,-500.0,0.00021369,3]
[347423248,1735781453010,-500.0,0.00021369,3]
[347423249,1735781453021,-548.06621636,0.00021369,3]
[347423250,1735781453035,-955.72,0.00021369,3]
[347423251,1735781453044,-1437.5,0.00021369,3]
[347423252,1735781453054,-629.12332074,0.00021369,3]
[347423253,1735781453063,-838.21,0.00021369,3]
[347423254,1735781453073,-500.0,0.00021369,3]
[347423255,1735781453082,-500.0,0.00021369,3]
[347423256,1735781453092,-500.0,0.00021369,3]
[347423257,1735781453101,-841.01,0.00021369,3]
[347423258,1735781453111,-962.78,0.00021369,3]
[347423259,1735781453120,-500.0,0.00021369,3]
[347423260,1735781453130,-151.0,0.00021369,2]
[347423261,1735781453140,-1333.99,0.00021369,3]
[347423262,1735781453150,-500.0,0.00021369,3]
[347423263,1735781453160,-500.0,0.00021369,3]
[347423264,1735781453170,-362.02254016,0.00021374,2]
[347423265,1735781453180,-324.64236567,0.00021392,2]
[347423266,1735781453190,-3655.29,0.000214,2]
[347423267,1735781453200,-198.600735,0.000214,2]
[347423268,1735781453210,-198.600735,0.000214,2]
[347423269,1735781453220,-988.337518,0.000214,2]
[347423270,1735781453229,-988.337518,0.000214,2]
[347423271,1735781453239,-260.885424,0.00021479,2]
[347423272,1735781453248,-362.02254016,0.00021584,2]
[347423273,1735781453257,-9135.0,0.000216,4]
[347423274,1735781453267,-151.0,0.000216,2]
[347423275,1735781453280,-560.013014,0.000216,2]
[347423276,1735781453289,-560.013014,0.000216,2]
[347423277,1735781453299,-168.998437,0.000216,2]
[347423278,1735781453309,-168.998437,0.000216,2]
[347423279,1735781453318,-500.0,0.00021643,3]
[347423280,1735781453328,-199.075554,0.00021643,2]
[347423281,1735781453337,-500.0,0.00021643,3]
[347423282,1735781453347,-151.187512,0.00021643,2]
[347423283,1735781453357,-151.187512,0.00021643,2]
[347423284,1735781453366,-151.0,0.00021643,2]
[347423285,1735781453376,-353.65813214,0.00021643,3]
[347423286,1735781453386,-500.0,0.00021643,3]
[347423287,1735781453395,-635.64,0.00021643,3]
[347423288,1735781453405,-151.0,0.00021643,2]
[347423289,1735781453414,-500.0,0.00021643,3]
[347423290,1735781453424,-247.936936,0.00021643,2]
[347423291,1735781453433,-3171.44,0.00021643,3]
[347423292,1735781453443,-608.36,0.00021643,3]
[347423293,1735781453452,-500.0,0.00021643,3]
[347423294,1735781453462,-567.2,0.00021643,3]
[347423295,1735781453472,-500.0,0.00021643,3]
[347423296,1735781453481,-167.20121,0.00021643,2]
[347423297,1735781453491,-552.0,0.00021643,3]
[347423298,1735781453500,-500.0,0.00021643,3]
[347423299,1735781453510,-682.65,0.00021643,3]
[347423300,1735781453522,-151.0,0.00021643,2]
[347423301,1735781453531,-151.0,0.00021643,2]
[347423302,1735781453541,-224.771737,0.00021643,2]
[347423303,1735781453551,-500.0,0.00021643,3]
[347423304,1735781453561,-224.771737,0.00021643,2]
[347423305,1735781453570,-688.94,0.00021643,3]
[347423306,1735781453580,-500.0,0.00021643,3]
[347423307,1735781453590,-500.0,0.00021643,3]
[347423308,1735781453600,-614.51,0.00021643,3]
[347423309,1735781453610,-500.0,0.00021643,3]
[347423310,1735781453620,-500.0,0.00021643,3]
[347423311,1735781453630,-563.24,0.00021643,3]
[347423312,1735781453640,-1968.22,0.00021643,3]
[347423313,1735781453650,-500.0,0.00021643,3]
[347423314,1735781453660,-500.0,0.00021643,3]
[347423315,1735781453670,-500.0,0.00021643,3]
[347423316,1735781453680,-500.0,0.00021643,3]
[347423317,1735781453690,-772.57,0.00021643,3]
[347423318,1735781453700,-500.0,0.00021643,3]
[347423319,1735781453709,-500.0,0.00021643,3]
[347423320,1735781453719,-1364.88,0.00021643,3]
[347423321,1735781453728,-17282.47,0.00021643,3]
[347423322,1735781453738,-500.0,0.00021643,3]
[347423323,1735781453747,-920.77,0.00021643,3]
[347423324,1735781453757,-650.43,0.00021643,3]
[347423325,1735781453766,-151.0,0.00021643,2]
[347423326,1735781453779,-668.77,0.00021643,3]
[347423327,1735781453789,-3722.61,0.00021643,3]
[347423328,1735781453798,-1336.34,0.00021643,3]
[347423329,1735781453807,-1957.8,0.00021643,3]
[347423330,1735781453817,-500.0,0.00021643,3]
[347423331,1735781453826,-2438.59,0.00021643,3]
[347423332,1735781453836,-907.56,0.00021643,2]
[347423333,1735781453959,-804.962658,0.00021643,2]
[347423334,1735781453969,-804.962658,0.00021643,2]
[347423335,1735781453979,-871.54,0.00021643,3]
[347423336,1735781453988,-500.0,0.00021643,3]
[347423337,1735781453998,-500.0,0.00021643,3]
[347423338,1735781454007,-499.0,0.00021643,4]
[347423339,1735781454016,-583.03,0.00021643,3]
[347423340,1735781454029,-1532.37,0.00021643,3]
[347423341,1735781454038,-500.0,0.00021643,3]
[347423342,1735781454047,-500.0,0.00021643,3]
[347423343,1735781454057,-955.72,0.00021643,3]
[347423344,1735781454066,-1437.5,0.00021643,3]
[347423345,1735781454076,-838.21,0.00021643,3]
[347423346,1735781454085,-500.0,0.00021643,3]
[347423347,1735781454095,-500.0,0.00021643,3]
[347423348,1735781454104,-500.0,0.00021643,3]
[347423349,1735781454113,-841.01,0.00021643,3]
[347423350,1735781454123,-500.0,0.00021643,3]
[347423351,1735781454133,-962.78,0.00021643,3]
[347423352,1735781454142,-158.257105,0.00021643,2]
[347423353,1735781454152,-1333.99,0.00021643,3]
[347423354,1735781454162,-500.0,0.00021643,3]
[347423355,1735781454171,-500.0,0.00021643,3]
[347423356,1735781454181,-260.885424,0.00021671,2]
[347423357,1735781454190,-11601.17,0.000217,2]
[347423358,1735781454200,-151.0,0.000217,3]
[347423359,1735781454210,-198.600735,0.000217,2]
[347423360,1735781454219,-198.600735,0.000217,2]
[347423361,1735781454229,-988.337518,0.000217,2]
[347423362,1735781454238,-988.337518,0.000217,2]
[347423363,1735781454248,-362.02254016,0.00021795,2]
[347423364,1735781454257,-151.0,0.00021843,2]
[347423365,1735781454266,-151.0,0.00021843,2]
[347423366,1735781454278,-260.885424,0.00021863,2]
[347423367,1735781454287,-500.0,0.00021917,3]
[347423368,1735781454297,-151.0,0.00021917,2]
[347423369,1735781454306,-560.013014,0.00021917,2]
[347423370,1735781454316,-560.013014,0.00021917,2]
[347423371,1735781454326,-500.0,0.00021917,3]
[347423372,1735781454335,-411.3182887,0.00021917,2]
[347423373,1735781454344,-151.187512,0.00021917,2]
[347423374,1735781454354,-151.187512,0.00021917,2]
[347423375,1735781454364,-151.0,0.00021917,2]
[347423376,1735781454373,-500.0,0.00021917,3]
[347423377,1735781454382,-635.64,0.00021917,3]
[347423378,1735781454392,-168.998437,0.00021917,2]
[347423379,1735781454402,-168.998437,0.00021917,2]
[347423380,1735781454411,-1000.0,0.00021917,5]
[347423381,1735781454421,-1000.0,0.00021917,5]
[347423382,1735781454430,-1000.0,0.00021917,5]
[347423383,1735781454439,-1000.0,0.00021917,5]
[347423384,1735781454448,-897.35473751,0.00021917,5]
[347423385,1735781454458,-151.0,0.00021917,2]
[347423386,1735781454466,-500.0,0.00021917,3]
[347423387,1735781454478,-3171.44,0.00021917,3]
[347423388,1735781454491,-608.36,0.00021917,3]
[347423389,1735781454501,-500.0,0.00021917,3]
[347423390,1735781454510,-567.2,0.00021917,3]
[347423391,1735781454520,-500.0,0.00021917,3]
[347423392,1735781454530,-552.0,0.00021917,3]
[347423393,1735781454540,-500.0,0.00021917,3]
[347423394,1735781454549,-682.65,0.00021917,3]
[347423395,1735781454558,-151.0,0.00021917,2]
[347423396,1735781454568,-151.0,0.00021917,2]
[347423397,1735781454577,-224.771737,0.00021917,2]
[347423398,1735781454587,-500.0,0.00021917,3]
[347423399,1735781454596,-224.771737,0.00021917,2]
[347423400,1735781454606,-688.94,0.00021917,3]
[347423401,1735781454615,-500.0,0.00021917,3]
[347423402,1735781454624,-500.0,0.00021917,3]
[347423403,1735781454635,-614.51,0.00021917,3]
[347423404,1735781454644,-500.0,0.00021917,3]
[347423405,1735781454653,-500.0,0.00021917,3]
[347423406,1735781454662,-563.24,0.00021917,3]
[347423407,1735781454672,-1968.22,0.00021917,3]
[347423408,1735781454681,-500.0,0.00021917,3]
[347423409,1735781454690,-500.0,0.00021917,3]
[347423410,1735781454699,-500.0,0.00021917,3]
[347423411,1735781454708,-499.85477461,0.00021917,3]
[347423412,1735781454717,-772.57,0.00021917,3]
[347423413,1735781454726,-500.0,0.00021917,3]
[347423414,1735781454736,-500.0,0.00021917,3]
[347423415,1735781454745,-1364.88,0.00021917,3]
[347423416,1735781454755,-17282.47,0.00021917,3]
[347423417,1735781454766,-500.0,0.00021917,3]
[347423418,1735781454777,-920.77,0.00021917,3]
[347423419,1735781454786,-650.43,0.00021917,3]
[347423420,1735781454796,-151.0,0.00021917,2]
[347423421,1735781454806,-668.77,0.00021917,3]
[347423422,1735781454815,-3722.61,0.00021917,3]
[347423423,1735781454825,-1336.34,0.00021917,3]
[347423424,1735781454835,-1957.8,0.00021917,3]
[347423425,1735781454845,-500.0,0.00021917,3]
[347423426,1735781454855,-2438.59,0.00021917,3]
[347423427,1735781454865,-907.56,0.00021917,2]
[347423428,1735781454875,-804.962658,0.00021917,2]
[347423429,1735781454885,-804.962658,0.00021917,2]
[347423430,1735781454894,-871.54,0.00021917,3]
[347423431,1735781454903,-500.0,0.00021917,3]
[347423432,1735781454913,-500.0,0.00021917,3]
[347423433,1735781454923,-583.03,0.00021917,3]
[347423434,1735781454932,-1532.37,0.00021917,3]
[347423435,1735781454942,-500.0,0.00021917,3]
[347423436,1735781454951,-500.0,0.00021917,3]
[347423437,1735781454961,-500.0,0.00021917,3]
[347423438,1735781454971,-500.0,0.00021917,3]
[347423439,1735781454981,-302.53187273,0.00021917,3]
[347423440,1735781454991,-955.72,0.00021917,3]
[347423441,1735781455000,-1437.5,0.00021917,3]
[347423442,1735781455010,-838.21,0.00021917,3]
[347423443,1735781455020,-500.0,0.00021917,3]
[347423444,1735781455031,-500.0,0.00021917,3]
[347423445,1735781455040,-500.0,0.00021917,3]
[347423446,1735781455050,-841.01,0.00021917,3]
[347423447,1735781455059,-500.0,0.00021917,3]
[347423448,1735781455069,-962.78,0.00021917,3]
[347423449,1735781455078,-1333.99,0.00021917,3]
[347423450,1735781455088,-372.38734321,0.00021917,3]
[347423451,1735781455097,-500.0,0.00021917,3]
[347423452,1735781455107,-1282.9228758,0.00021918,7]
[347423453,1735781455116,-500.0,0.00021918,3]
[347423454,1735781455126,-150.23,0.00021918,2]
[347423455,1735781455136,-219.01009929,0.00021918,3]
[347423456,1735781455145,-324.64236567,0.00021971,2]
[347423457,1735781455155,-5000.0,0.00022,7]
[347423458,1735781455165,-1000.0,0.00022,22]
[347423459,1735781455175,-120655.16992787,0.00022,10]
[347423460,1735781455184,-11841.46608862,0.00022,15]
[347423461,1735781455194,-34973.30233744,0.00022,2]
[347423462,1735781455204,-161.68866598,0.00022,10]
[347423463,1735781455213,-904.17,0.00022,2]